bitfinex-derivatives/quotes_SOLF0:USTF0_20240918
["timestamp","ask_amount","ask_price","bid_price","bid_amount"]
[1726694357028,20.3379,130.95,130.91,3.8187]
[1726694360130,27.14422044,130.96,130.92,3.8185]
[1726694363635,3.8179,130.94,130.9,3.8188]
[1726694365330,3.8179,130.94,130.91,3.8188]
[1726694368025,14.3879,130.94,130.91,3.8188]
[1726694370836,14.3883,130.93,130.88,1.3896]
[1726694371232,10.57,130.89,130.87,3.8199]
[1726694371429,3.87813255,130.88,130.84,10.57]
[1726694371635,3.89953336,130.87,130.84,10.57]
[1726694371831,10.57,130.89,130.86,3.8202]
[1726694372434,14.31934553,130.89,130.86,3.8202]
[1726694372928,18.13894553,130.89,130.84,10.57]
[1726694373944,18.13894553,130.89,130.86,3.8202]
[1726694374842,14.31934553,130.89,130.86,3.8202]
[1726694375933,6.80672044,130.96,130.82,2.855]
[1726694375934,6.80672044,130.96,130.88,10.57]
[1726694376139,10.57,130.94,130.89,10.57]
[1726694376446,14.3881,130.94,130.9,3.8189]
[1726694376644,10.57,130.94,130.89,10.57]
[1726694376944,6.80672044,130.96,130.9,10.57]
[1726694376945,10.57,130.95,130.9,10.57]
[1726694377141,17.37672044,130.96,130.92,10.57]
[1726694377542,21.19422044,130.96,130.92,14.3883]
[1726694378036,10.62422044,130.96,130.92,3.8183]
[1726694384956,6.80672044,130.96,130.88,2.7851]
[1726694385550,3.8181,130.94,130.9,3.8191]
[1726694391666,3.8178,130.95,130.91,3.8187]
[1726694391864,6.80672044,130.96,130.89,16.51]
[1726694391865,5.34452044,130.96,130.89,16.51]
[1726694392265,9.16202044,130.96,130.92,3.8183]
[1726694392564,7.69602044,130.96,130.9,16.51]
[1726694393866,3.87852044,130.96,130.9,16.51]
[1726694394073,3.8172,130.97,130.93,3.8179]
[1726694394464,3.8172,130.97,130.9,16.51]
[1726694394666,3.8168,130.98,130.94,3.8177]
[1726694395166,3.8168,130.98,130.92,16.51]
[1726694395671,3.8165,130.99,130.92,16.51]
[1726694395873,3.8165,130.99,130.95,3.8175]
[1726694396572,3.8165,130.99,130.96,3.8173]
[1726694397070,16.51,131.0,130.92,16.51]
[1726694397269,16.51,131.0,130.95,3.8175]
[1726694397466,3.8165,130.99,130.92,16.51]
[1726694398566,16.51,131.0,130.92,16.51]
[1726694398567,3.8168,130.98,130.92,16.51]
[1726694399764,3.8168,130.98,130.95,3.8176]
[1726694399970,3.8168,130.98,130.95,14.3776]
[1726694400572,3.8165,130.99,130.96,3.8173]
[1726694402272,10.56,131.01,130.97,3.817]
[1726694402470,13.4655,131.02,130.97,10.56]
[1726694402672,14.3758,131.02,130.97,10.56]
[1726694402878,14.3758,131.02,130.98,3.8166]
[1726694404172,3.8159,131.01,130.98,3.8166]
[1726694405172,3.8164,131.0,130.96,3.8172]
[1726694405564,14.3764,131.0,130.96,3.8172]
[1726694405977,10.56,131.0,130.97,3.817]
[1726694408678,14.3763,131.0,130.96,14.3772]
[1726694409972,14.3763,131.0,130.97,3.817]
[1726694412579,14.376,131.01,130.97,3.817]
[1726694412970,14.376,131.01,130.98,3.8168]
[1726694413373,14.33989548,131.01,130.96,10.56]
[1726694413576,14.33989548,131.01,130.97,10.56]
[1726694414775,18.15579548,131.01,130.98,3.8167]
[1726694415586,7.59579548,131.01,130.98,3.8167]
[1726694416280,3.77989548,131.01,130.99,3.8164]
[1726694416477,10.56,131.03,130.99,3.8164]
[1726694417081,18.24209607,131.03,130.99,3.8164]
[1726694417477,14.42659607,131.03,130.88,2.7851]
[1726694417780,10.56,130.99,130.94,10.56]
[1726694418176,3.88110917,130.98,130.96,3.8173]
[1726694418384,3.88110917,130.98,130.94,10.56]
[1726694418688,3.88110917,130.98,130.95,10.56]
[1726694418986,3.88110917,130.98,130.96,3.8173]
[1726694419187,14.3763,131.0,130.96,3.8173]
[1726694419888,18.27023317,131.0,130.96,3.8173]
[1726694420577,10.56,130.99,130.96,3.8173]
[1726694420783,14.3767,130.99,130.95,3.8176]
[1726694420984,10.56,130.99,130.94,10.56]
[1726694421185,10.56,130.98,130.94,10.56]
[1726694421488,10.56,130.99,130.94,10.56]
[1726694422791,14.3766,130.99,130.95,3.8174]
[1726694424093,14.3766,130.99,130.96,3.8173]
[1726694424494,10.56,130.99,130.96,3.8173]
[1726694424993,14.3763,131.0,130.96,3.8173]
[1726694425396,14.3763,131.0,130.97,3.817]
[1726694425397,10.56,131.0,130.97,3.817]
[1726694425791,10.56,131.0,130.97,10.56]
[1726694425990,3.8159,131.01,130.97,10.56]
[1726694426394,14.3757,131.02,130.98,3.8167]
[1726694428000,3.8159,131.01,130.98,3.8167]
[1726694429000,14.3757,131.02,130.98,3.8167]
[1726694430393,3.8157,131.02,130.99,3.8165]
[1726694430597,14.3757,131.02,130.99,3.8165]
[1726694431400,14.3757,131.02,130.98,3.8166]
[1726694441504,3.8157,131.02,130.99,3.8165]
[1726694441811,10.56,131.01,130.99,3.8165]
[1726694444409,14.3757,131.02,130.99,3.8165]
[1726694446607,3.8157,131.02,130.98,14.3766]
[1726694446912,10.56,131.05,131.0,10.56]
[1726694447108,14.40329872,131.05,131.02,3.8154]
[1726694448510,18.21799872,131.05,131.01,3.8158]
[1726694449815,14.40329872,131.05,131.02,3.8156]
[1726694450814,18.21799872,131.05,131.02,3.8156]
[1726694453125,14.40329872,131.05,131.02,3.8156]
[1726694453323,14.40329872,131.05,131.03,3.8152]
[1726694453523,14.40329872,131.05,131.01,10.56]
[1726694453918,14.40329872,131.05,131.02,3.8155]
[1726694456530,18.21799872,131.05,131.02,3.8155]
[1726694457628,14.40329872,131.05,131.02,3.8155]
[1726694462129,14.40329872,131.05,131.01,10.56]
[1726694463029,14.40329872,131.05,131.02,3.8154]
[1726694463030,3.84329872,131.05,131.02,3.8154]
[1726694463230,14.3745,131.06,131.02,3.8154]
[1726694465936,10.56,131.06,131.03,3.8152]
[1726694466236,10.56,131.06,131.01,10.56]
[1726694466433,14.3744,131.07,131.03,3.8151]
[1726694467439,3.8144,131.06,131.03,3.8151]
[1726694467834,14.3746,131.06,131.01,10.56]
[1726694468940,14.3746,131.06,131.02,3.8154]
[1726694469833,3.8142,131.07,131.03,3.8152]
[1726694470029,14.3742,131.07,131.03,3.8152]
[1726694470235,4.2668,131.09,131.02,10.56]
[1726694470435,10.56,131.08,131.02,10.56]
[1726694471937,3.8142,131.07,131.03,3.8152]
[1726694472142,10.56,131.07,131.01,10.56]
[1726694472542,14.3743,131.07,131.03,3.8153]
[1726694474845,3.8143,131.07,131.03,3.8153]
[1726694475047,14.3743,131.07,131.03,3.8153]
[1726694475240,14.3743,131.07,131.01,10.56]
[1726694475241,10.56,131.07,131.04,3.8149]
[1726694475443,3.8139,131.08,131.04,3.8149]
[1726694475637,4.2668,131.09,131.04,3.8149]
[1726694475836,18.6404,131.09,131.05,3.8146]
[1726694476539,8.0804,131.09,131.05,3.8146]
[1726694476736,18.6404,131.09,131.05,3.8146]
[1726694476939,15.798,131.09,131.05,3.8146]
[1726694477147,5.238,131.09,131.05,3.8146]
[1726694477445,11.9844,131.09,131.04,10.56]
[1726694477644,1.4244,131.09,131.04,10.56]
[1726694478150,11.9844,131.09,131.04,10.56]
[1726694478942,10.56,131.09,131.05,3.8146]
[1726694479143,3.8134,131.1,131.05,14.3746]
[1726694479646,3.8136,131.09,131.05,10.56]
[1726694480646,3.8134,131.1,131.05,14.3746]
[1726694481148,14.3734,131.1,131.05,14.3746]
[1726694481451,10.56,131.1,131.06,14.3743]
[1726694481647,3.813,131.11,131.06,10.56]
[1726694481849,10.56,131.11,131.06,10.56]
[1726694482149,10.56,131.11,131.07,14.3739]
[1726694483145,18.13408511,131.12,131.07,14.3739]
[1726694483343,7.57408511,131.12,131.08,3.8138]
[1726694484940,380.68,131.23,131.09,3.8135]
[1726694485141,10.56,131.14,131.08,10.56]
[1726694485644,10.56,131.14,131.09,10.56]
[1726694485845,3.8119,131.15,131.1,3.8131]
[1726694486052,14.3719,131.15,131.1,3.8131]
[1726694487957,14.3719,131.15,131.1,14.3731]
[1726694489340,3.8121,131.14,131.1,14.3731]
[1726694489541,3.8121,131.14,131.1,10.56]
[1726694489744,10.56,131.15,131.09,14.3735]
[1726694490750,3.8124,131.13,131.09,14.3735]
[1726694490947,3.72720528,131.12,131.09,14.3735]
[1726694492252,3.72720528,131.12,131.09,10.56]
[1726694492647,10.56,131.12,131.06,3.8143]
[1726694492853,10.56,131.11,131.04,2.8534]
[1726694493053,10.56,131.11,131.06,10.56]
[1726694493749,3.8137,131.09,131.06,10.56]
[1726694494445,3.88175818,131.12,131.04,2.8534]
[1726694494650,10.56,131.14,131.08,10.56]
[1726694495047,3.813,131.12,131.08,10.56]
[1726694495248,14.30723956,131.12,131.04,2.8534]
[1726694495449,10.56,131.11,131.05,10.56]
[1726694495756,3.8137,131.09,131.05,10.56]
[1726694496056,3.73655279,131.08,131.05,10.56]
[1726694498053,3.73655279,131.08,131.05,14.3747]
[1726694499442,3.73655279,131.08,131.05,10.56]
[1726694499649,10.56,131.1,131.05,10.56]
[1726694499845,14.43492158,131.1,131.05,10.56]
[1726694500051,3.8139,131.08,131.05,10.56]
[1726694500249,14.43492158,131.1,131.05,10.56]
[1726694501756,3.8136,131.09,131.05,14.3746]
[1726694502553,14.43492158,131.1,131.03,1.4592]
[1726694502755,3.8141,131.08,131.04,10.56]
[1726694502964,10.56,131.09,131.04,10.56]
[1726694503152,7.66037649,131.09,131.05,10.56]
[1726694503954,7.66037649,131.09,131.05,14.3745]
[1726694504357,3.84667649,131.09,131.05,10.56]
[1726694504558,14.3733,131.1,131.05,10.56]
[1726694504756,3.73903203,131.09,131.07,3.8141]
[1726694505750,338.0,131.18,131.08,10.56]
[1726694505954,10.56,131.13,131.08,10.56]
[1726694506258,14.32995205,131.13,131.08,10.56]
[1726694506858,18.14255205,131.13,131.09,3.8134]
[1726694509359,18.14255205,131.13,131.09,14.3734]
[1726694509862,14.32995205,131.13,131.09,10.56]
[1726694510364,14.32995205,131.13,131.09,14.3735]
[1726694514471,3.76995205,131.13,131.09,14.3735]
[1726694514772,14.3724,131.14,131.09,14.3735]
[1726694514962,14.3719,131.15,131.1,14.3732]
[1726694515270,10.56,131.15,131.1,14.3732]
[1726694515766,10.56,131.15,131.11,3.8129]
[1726694516673,14.372,131.15,131.11,3.8129]
[1726694518169,14.372,131.15,131.1,14.3731]
[1726694521568,14.372,131.15,131.11,3.8129]
[1726694523567,3.812,131.15,131.11,14.3729]
[1726694524163,3.8115,131.17,131.13,14.3722]
[1726694524370,10.56,131.18,131.13,10.56]
[1726694525170,8.36196702,131.2,131.13,10.56]
[1726694525374,10.56,131.18,131.13,10.56]
[1726694525579,8.36196702,131.2,131.14,10.56]
[1726694525774,8.36196702,131.2,131.04,2.9535]
[1726694525969,10.56,131.19,131.15,10.56]
[1726694526476,8.36196702,131.2,131.15,10.56]
[1726694526678,10.56,131.19,131.15,10.56]
[1726694527377,8.36196702,131.2,131.16,10.56]
[1726694527572,5.39816702,131.2,131.17,10.56]
[1726694527765,9.20876702,131.2,131.17,10.56]
[1726694528273,3.89426702,131.2,131.17,10.56]
[1726694528471,3.8101,131.21,131.17,10.56]
[1726694529069,3.76412293,131.21,131.18,10.56]
[1726694529268,3.8098,131.22,131.18,10.56]
[1726694529479,11.9935,131.23,131.19,10.56]
[1726694529680,1.159483,131.22,131.19,10.56]
[1726694530364,4.969383,131.22,131.18,10.56]
[1726694530571,1.159483,131.21,131.18,10.56]
[1726694530779,10.56,131.22,131.18,10.56]
[1726694530979,1.15959184,131.21,131.18,10.56]
[1726694531575,3.8101,131.21,131.18,10.56]
[1726694538181,3.8099,131.22,131.18,10.56]
[1726694538386,1.15957303,131.21,131.18,10.56]
[1726694539382,10.56,131.2,131.09,4.5335]
[1726694539584,11.71972083,131.19,131.09,4.5335]
[1726694539886,10.56,131.19,131.13,3.8121]
[1726694540184,10.56,131.16,131.12,10.56]
[1726694540389,14.36015389,131.16,131.12,10.56]
[1726694540591,3.80015389,131.16,131.12,14.3727]
[1726694540903,14.3714,131.17,131.12,14.3727]
[1726694542987,4.97153169,131.16,131.12,10.56]
[1726694543291,4.97153169,131.16,131.11,3.8129]
[1726694543292,18.18522115,131.16,131.11,14.3729]
[1726694547894,7.62522115,131.16,131.11,14.3729]
[1726694551104,1.16013442,131.15,131.11,14.3729]
[1726694551696,7.62522115,131.16,131.11,14.3729]
[1726694551906,1.16011717,131.15,131.11,14.3729]
[1726694552901,15.53221717,131.15,131.1,14.3732]
[1726694553208,14.3721,131.15,131.1,14.3732]
[1726694553411,14.3721,131.15,131.11,3.8129]
[1726694554111,10.56,131.15,131.11,3.8129]
[1726694554715,7.62532115,131.16,131.11,3.8129]
[1726694554907,11.72014731,131.15,131.11,3.8129]
[1726694555211,10.56,131.15,131.1,14.3731]
[1726694555506,10.56,131.13,131.09,4.5335]
[1726694555709,10.56,131.12,131.08,14.3738]
[1726694555908,10.56,131.11,131.05,4.3716]
[1726694556109,12.77192631,131.23,131.05,4.3716]
[1726694556110,10.56,131.1,131.05,4.3716]
[1726694556302,10.56,131.08,131.05,2.9639]
[1726694557411,3.89184148,131.07,131.05,6.7786]
[1726694557914,10.56,131.08,131.04,3.8149]
[1726694558404,14.41788659,131.08,131.04,3.8149]
[1726694559909,3.85788659,131.08,131.06,3.8144]
[1726694560111,10.56,131.1,131.06,3.8144]
[1726694560702,14.37355966,131.1,131.06,3.8144]
[1726694563015,18.18685966,131.1,131.06,3.8144]
[1726694563207,14.37355966,131.1,131.04,10.56]
[1726694563809,18.18695966,131.1,131.05,3.8145]
[1726694564209,18.18695966,131.1,131.04,10.56]
[1726694565108,18.18695966,131.1,131.06,3.8142]
[1726694565810,14.3736,131.09,131.05,3.8146]
[1726694566009,10.56,131.09,131.05,3.8146]
[1726694566712,3.77424881,131.09,131.06,3.8142]
[1726694567019,10.56,131.09,131.06,3.8142]
[1726694567317,14.29570102,131.09,131.06,3.8142]
[1726694569611,14.29570102,131.09,131.03,3.8151]
[1726694569612,3.814,131.08,131.03,3.8151]
[1726694569815,3.814,131.08,131.03,10.56]
[1726694569816,14.374,131.08,131.03,10.56]
[1726694570418,14.374,131.08,131.04,3.8148]
[1726694570810,10.56,131.08,131.03,10.56]
[1726694571618,10.56,131.08,131.0,2.9907]
[1726694571917,10.56,131.08,131.03,10.56]
[1726694572818,10.56,131.08,131.04,3.8148]
[1726694573125,14.3741,131.08,131.04,3.8148]
[1726694573624,14.3741,131.08,131.05,3.8147]
[1726694575218,10.56,131.08,131.04,3.815]
[1726694576822,3.73570102,131.09,131.0,2.9907]
[1726694577021,10.56,131.08,131.04,10.56]
[1726694577218,14.35620151,131.08,131.04,10.56]
[1726694577425,14.35620151,131.08,131.05,3.8145]
[1726694578932,14.35620151,131.08,131.04,10.56]
[1726694579519,14.35620151,131.08,131.06,3.8144]
[1726694580324,3.79620151,131.08,131.07,3.8141]
[1726694580528,10.56,131.11,131.07,3.8141]
[1726694580724,14.42308918,131.11,131.07,3.8141]
[1726694581917,3.86308918,131.11,131.09,3.8135]
[1726694582222,10.56,131.12,131.09,3.8135]
[1726694582423,3.78560601,131.11,131.09,3.8135]
[1726694583029,3.78560601,131.11,131.1,3.8133]
[1726694583239,10.56,131.14,131.09,10.56]
[1726694583431,3.80278208,131.14,131.1,10.56]
[1726694583626,1.5102,131.17,131.12,10.56]
[1726694583826,12.0702,131.17,131.12,10.56]
[1726694584426,10.56,131.17,131.12,10.56]
[1726694584628,10.56,131.17,131.14,3.8121]
[1726694586232,10.56,131.18,131.14,3.8121]
[1726694587429,10.56,131.18,131.15,3.8118]
[1726694588329,10.56,131.19,131.15,3.8118]
[1726694588531,1.15995337,131.18,131.15,3.8118]
[1726694589032,1.15995337,131.18,131.15,14.3718]
[1726694590038,1.15995337,131.18,131.16,3.8114]
[1726694590935,19.72604112,131.21,131.16,14.3715]
[1726694591127,15.8796,131.21,131.16,14.3715]
[1726694591325,1.15972535,131.2,131.16,14.3715]
[1726694592827,1.15972535,131.2,131.17,3.8112]
[1726694595331,15.8796,131.21,131.17,3.8112]
[1726694595535,1.15970125,131.2,131.17,3.8112]
[1726694595932,15.8796,131.21,131.17,3.8112]
[1726694596133,1.15974422,131.2,131.17,3.8112]
[1726694598437,1.15974422,131.2,131.18,3.8109]
[1726694599537,10.56,131.21,131.18,3.8109]
[1726694599740,1.15969863,131.2,131.18,3.8109]
[1726694600837,1.15969863,131.2,131.18,14.3709]
[1726694601136,10.56,131.22,131.19,3.8106]
[1726694601340,1.15969663,131.21,131.19,3.8106]
[1726694602238,14.27892631,131.23,131.19,3.8106]
[1726694602445,1.15952484,131.22,131.19,3.8106]
[1726694606748,18.08842631,131.23,131.19,3.8106]
[1726694606947,1.15951698,131.22,131.19,3.8106]
[1726694607651,18.08842631,131.23,131.19,3.8106]
[1726694607947,1.15947365,131.22,131.19,3.8106]
[1726694608344,18.08842631,131.23,131.19,3.8106]
[1726694608650,1.15947098,131.22,131.19,3.8106]
[1726694610756,1.15947098,131.22,131.2,3.8103]
[1726694611549,3.71892631,131.23,131.2,14.3703]
[1726694611748,14.3693,131.24,131.2,14.3703]
[1726694611949,1.15946897,131.23,131.2,14.3703]
[1726694612156,1.15946897,131.23,131.22,3.8098]
[1726694612358,3.8088,131.26,131.22,3.8098]
[1726694612359,14.3688,131.26,131.22,3.8098]
[1726694612661,1.15928094,131.25,131.23,3.8094]
[1726694613157,1.15928094,131.25,131.22,14.3697]
[1726694613450,1.15928094,131.25,131.22,3.8097]
[1726694614358,1.15928094,131.25,131.23,3.8095]
[1726694619154,3.75515457,131.26,131.23,3.8095]
[1726694619360,152.5,131.36,131.25,10.56]
[1726694619555,152.5,131.36,131.15,6.62680892]
[1726694619556,1.15886901,131.31,131.23,1.4353]
[1726694619747,1.15886901,131.32,131.24,2.9133]
[1726694619949,1.15871486,131.31,131.24,2.9133]
[1726694620148,11.71871486,131.31,131.25,10.56]
[1726694620355,10.56,131.29,131.24,2.9133]
[1726694620563,8.19006919,131.35,131.25,10.56]
[1726694620757,10.56,131.3,131.25,10.56]
[1726694621453,10.56,131.3,131.25,14.3687]
[1726694626767,10.56,131.3,131.26,10.56]
[1726694627577,10.56,131.3,131.26,14.3686]
[1726694629274,14.3676,131.3,131.24,2.9133]
[1726694629480,14.3676,131.3,131.25,10.56]
[1726694629679,1.15880931,131.29,131.25,10.56]
[1726694629881,11.71880931,131.29,131.25,10.56]
[1726694630188,10.56,131.29,131.25,14.3688]
[1726694630677,10.56,131.3,131.26,3.8086]
[1726694630881,3.8074,131.31,131.26,14.3686]
[1726694631070,1.15874086,131.3,131.26,14.3686]
[1726694631875,14.3674,131.31,131.26,14.3686]
[1726694632084,2.31744166,131.3,131.26,14.3686]
[1726694632290,1.15872083,131.3,131.26,14.3686]
[1726694635678,1.15872083,131.3,131.27,3.8083]
[1726694636282,1.15872083,131.3,131.28,3.8079]
[1726694636588,1.15872083,131.3,131.27,10.56]
[1726694637779,1.15872083,131.3,131.27,14.3682]
[1726694638987,11.71872083,131.3,131.24,1.3875]
[1726694639191,10.56,131.28,131.24,1.3875]
[1726694639393,14.34592921,131.28,131.24,1.3875]
[1726694639590,14.34592921,131.28,131.24,5.1965]
[1726694640279,14.34592921,131.28,131.24,15.7565]
[1726694641388,14.34592921,131.28,131.18,1.5313]
[1726694641389,11.71891808,131.27,131.18,1.5313]
[1726694641693,1.15891808,131.26,131.22,10.56]
[1726694642084,1.15891808,131.26,131.22,14.3696]
[1726694642989,11.71906711,131.25,131.19,2.9416]
[1726694643283,10.56,131.23,131.19,1.4287]
[1726694643687,10.56,131.22,131.18,12.0913]
[1726694643887,14.40101883,131.22,131.18,10.56]
[1726694644087,14.40101883,131.22,131.17,3.811]
[1726694644392,14.40101883,131.22,131.17,14.371]
[1726694647886,18.21081883,131.22,131.17,3.811]
[1726694648086,11.71951604,131.21,131.17,3.811]
[1726694648286,10.56,131.21,131.17,3.811]
[1726694658297,10.56,131.21,131.18,3.8109]
[1726694670317,10.56,131.21,131.16,10.56]
[1726694670318,3.84101883,131.22,131.19,3.8105]
[1726694670523,10.56,131.22,131.19,3.8105]
[1726694670724,14.36959688,131.22,131.19,3.8105]
[1726694674717,3.80959688,131.22,131.18,10.56]
[1726694674918,10.56,131.23,131.18,10.56]
[1726694675116,1.15947137,131.22,131.18,10.56]
[1726694675315,4.96944962,131.22,131.19,3.8104]
[1726694675615,10.56,131.23,131.19,3.8104]
[1726694675817,1.15947149,131.22,131.19,3.8104]
[1726694677727,10.56,131.21,131.18,3.8107]
[1726694685331,7.65428376,131.23,131.2,10.56]
[1726694685332,3.84468376,131.23,131.2,10.56]
[1726694685526,10.56,131.25,131.2,10.56]
[1726694685721,1.15938828,131.24,131.2,10.56]
[1726694686131,1.15938828,131.24,131.21,3.81]
[1726694687029,1.15938828,131.24,131.2,10.56]
[1726694687225,1.15938828,131.24,131.21,10.56]
[1726694687430,14.36692783,131.25,131.21,10.56]
[1726694688037,1.15923336,131.24,131.22,3.8097]
[1726694688239,14.36692783,131.25,131.21,10.56]
[1726694688930,1.15922329,131.24,131.21,14.3699]
[1726694689138,14.36692783,131.25,131.21,14.3699]
[1726694689338,14.36692783,131.25,131.21,10.56]
[1726694689538,14.36692783,131.25,131.22,3.8096]
[1726694695242,1.15919384,131.24,131.22,3.8096]
[1726694696238,14.36692783,131.25,131.22,3.8096]
[1726694696544,1.15920614,131.24,131.22,3.8096]
[1726694700038,14.36692783,131.25,131.22,3.8096]
[1726694701044,10.56,131.23,131.13,6.33559337]
[1726694701236,3.80692783,131.25,131.13,9.26209337]
[1726694701237,10.56,131.21,131.13,9.26209337]
[1726694701437,10.56,131.21,131.15,10.56]
[1726694701637,10.56,131.21,131.18,3.8108]
[1726694702044,10.56,131.21,131.16,10.56]
[1726694702245,10.56,131.21,131.19,3.8106]
[1726694703047,10.56,131.2,131.15,10.56]
[1726694703344,10.56,131.21,131.15,10.56]
[1726694703548,10.56,131.21,131.18,3.8109]
[1726694704550,14.3698,131.22,131.18,3.8109]
[1726694705346,14.3698,131.22,131.19,3.8106]
[1726694705850,10.56,131.2,131.17,3.811]
[1726694706539,14.44252551,131.2,131.17,3.811]
[1726694707247,14.44252551,131.2,131.18,3.8109]
[1726694708446,10.56,131.19,131.17,3.8111]
[1726694709240,10.56,131.19,131.16,3.8114]
[1726694709640,14.43718661,131.19,131.16,3.8114]
[1726694710747,18.24788661,131.19,131.16,3.8114]
[1726694711050,10.56,131.18,131.14,11.9616]
[1726694711646,10.56,131.18,131.15,3.8115]
[1726694712255,10.56,131.18,131.16,3.8114]
[1726694716142,10.56,131.18,131.15,3.8117]
[1726694717649,10.56,131.18,131.16,3.8115]
[1726694718549,10.56,131.17,131.13,2.9265]
[1726694718851,10.56,131.15,131.1,1.4443]
[1726694719054,10.56,131.15,131.1,12.0043]
[1726694719252,10.56,131.15,131.12,3.8125]
[1726694719449,11.8735,131.27,131.1,12.0043]
[1726694719648,10.56,131.18,131.13,10.56]
[1726694719862,14.35501441,131.18,131.13,10.56]
[1726694720051,14.35501441,131.18,131.15,3.8116]
[1726694720959,10.56,131.17,131.14,3.812]
[1726694725459,14.3712,131.17,131.14,3.812]
[1726694725759,14.3712,131.17,131.1,1.4443]
[1726694726062,14.3716,131.16,131.1,12.0043]
[1726694726459,14.3716,131.16,131.12,3.8125]
[1726694726864,18.16481087,131.16,131.12,3.8125]
[1726694727459,10.56,131.15,131.12,3.8125]
[1726694729655,10.56,131.14,131.12,3.8125]
[1726694733854,10.56,131.14,131.11,3.8128]
[1726694736257,10.56,131.12,131.04,12.22872938]
[1726694736563,10.56,131.11,131.05,4.391]
[1726694736762,14.45765659,131.11,131.07,3.814]
[1726694737370,10.56,131.1,131.06,3.8144]
[1726694738270,10.56,131.08,131.05,6.7524]
[1726694738964,10.56,131.08,131.05,3.8146]
[1726694739563,10.56,131.08,131.06,3.8144]
[1726694741365,10.56,131.08,131.05,3.8147]
[1726694742865,3.89765659,131.11,131.07,10.56]
[1726694743072,10.56,131.13,131.07,10.56]
[1726694743274,14.28539616,131.13,131.1,3.813]
[1726694750269,10.56,131.11,131.02,2.971]
[1726694750475,10.56,131.1,131.05,10.56]
[1726694750674,4.4006,131.15,131.08,10.56]
[1726694750873,10.56,131.13,131.1,3.8132]
[1726694751078,14.2940743,131.13,131.1,3.8132]
[1726694752977,10.56,131.12,131.1,3.8132]
[1726694756379,10.56,131.11,131.09,3.8135]
[1726694757182,14.38328175,131.11,131.09,3.8135]
[1726694760479,14.38328175,131.11,131.1,3.8133]
[1726694761184,231.74390212,131.21,131.14,3.8119]
[1726694761377,10.56,131.16,131.14,3.8119]
[1726694761577,4.5154,131.2,131.14,3.8119]
[1726694761782,10.56,131.16,131.14,3.8119]
[1726694762891,10.56,131.16,131.15,3.8118]
[1726694764383,3.8108,131.19,131.15,3.8118]
[1726694764592,10.56,131.17,131.15,3.8118]
[1726694768495,10.56,131.17,131.14,3.8119]
[1726694772993,10.56,131.17,131.15,3.8117]
[1726694779124,10.56,131.17,131.12,10.56]
[1726694780007,10.56,131.17,131.14,3.812]
[1726694782302,10.56,131.16,131.13,3.8122]
[1726694782507,10.56,131.15,131.13,3.8122]
[1726694786206,10.56,131.15,131.07,3.003]
[1726694786406,10.56,131.13,131.07,3.003]
[1726694786611,10.56,131.12,131.08,10.56]
[1726694787110,10.56,131.12,131.09,3.8135]
[1726694787308,3.86493204,131.11,131.08,10.56]
[1726694788814,3.86493204,131.11,131.1,3.8133]
[1726694794518,10.56,131.12,131.1,3.8133]
[1726694795014,14.45223074,131.12,131.1,3.8133]